bitfinex/quotes_ETHUSD_20241217
["timestamp","ask_amount","ask_price","bid_price","bid_amount"]
[1734422591340,0.827,3998.7,3997.2,0.68179412]
[1734422592457,0.827,3998.7,3997.3,0.8323]
[1734422592639,0.827,3998.7,3997.4,0.68179412]
[1734422592996,0.827,3998.7,3997.5,0.38475087]
[1734422593236,0.827,3998.7,3997.6,0.68179412]
[1734422594757,0.55,3998.6,3997.6,0.68179412]
[1734422594909,0.1377,3998.5,3997.6,0.68179412]
[1734422595343,0.55,3998.4,3997.6,0.68179412]
[1734422597120,0.55,3998.2,3996.9,1.14805087]
[1734422597318,0.1377,3998.5,3996.2,0.7633]
[1734422597319,1.3176,3997.8,3996.2,0.7633]
[1734422597566,2.35972176,3997.9,3994.4,0.25]
[1734422597567,0.55,3997.4,3995.3,0.7633]
[1734422597780,0.36773218,3997.7,3995.3,0.7633]
[1734422597781,0.55,3997.2,3995.3,0.7633]
[1734422598060,0.55,3997.0,3995.4,0.40551164]
[1734422598205,0.55,3997.0,3995.5,0.7633]
[1734422598405,0.55,3997.0,3995.7,0.7633]
[1734422598746,0.7676,3997.5,3996.2,0.7633]
[1734422598943,0.55,3997.4,3996.2,1.54514164]
[1734422599154,0.1377,3998.5,3996.7,3.0]
[1734422599304,0.166833,3999.0,3996.9,3.0]
[1734422599507,0.166833,3999.0,3997.1,0.7633]
[1734422599807,0.166833,3999.0,3997.3,0.7633]
[1734422600014,0.166833,3999.0,3997.4,0.40551164]
[1734422601024,0.7676,3998.9,3997.4,0.40551164]
[1734422602607,0.55,3998.8,3997.4,0.40551164]
[1734422602808,0.55,3998.6,3997.4,0.40551164]
[1734422603119,0.55,3998.6,3997.4,0.75823444]
[1734422603945,0.1484433,3998.7,3997.5,0.7633]
[1734422604146,0.1484433,3998.7,3997.6,0.40551164]
[1734422604410,0.55,3998.6,3997.6,0.40551164]
[1734422606357,0.55,3998.6,3997.5,0.7633]
[1734422606910,0.55,3998.4,3997.5,0.7633]
[1734422607202,0.55,3998.2,3997.5,0.7633]
[1734422607411,0.55,3998.2,3997.5,1.16881164]
[1734422607698,0.55,3998.2,3997.6,0.40551164]
[1734422608963,0.55,3998.2,3997.1,3.7633]
[1734422609181,0.55,3998.2,3997.1,1.16881164]
[1734422609363,0.55,3998.2,3997.2,0.40551164]
[1734422609857,0.5181246,3998.2,3997.2,0.40551164]
[1734422610291,0.14174846,3998.2,3997.2,0.40551164]
[1734422611730,0.7676,3998.1,3997.2,0.40551164]
[1734422611947,0.55,3998.0,3996.7,0.7633]
[1734422612232,0.14174846,3998.2,3996.2,0.3527228]
[1734422612233,0.14174846,3998.2,3996.6,0.7633]
[1734422612412,0.14174846,3998.2,3996.9,0.7633]
[1734422612613,0.55,3998.1,3997.0,0.40551164]
[1734422612824,0.69593485,3998.1,3997.0,0.40551164]
[1734422613324,0.14593485,3998.1,3997.0,0.75823444]
[1734422613534,0.55,3998.3,3997.1,0.3527228]
[1734422613674,0.55,3998.3,3997.2,0.40551164]
[1734422613878,0.7676,3998.9,3997.3,0.7633]
[1734422614118,0.7676,3998.9,3997.4,0.40551164]
[1734422615294,0.55,3998.8,3997.4,0.40551164]
[1734422615498,0.1484433,3998.7,3997.4,0.40551164]
[1734422615676,0.1484433,3998.7,3997.4,0.75823444]
[1734422615873,0.7676,3998.9,3997.5,1.1047228]
[1734422615874,0.55,3998.8,3997.5,1.1047228]
[1734422616081,0.55,3998.8,3997.6,1.15751164]
[1734422617432,0.55,3998.8,3997.6,1.51023444]
[1734422618157,0.7676,3998.9,3997.7,0.752]
[1734422618158,0.55,3998.9,3997.7,0.752]
[1734422618873,1.3569,3998.9,3997.7,0.752]
[1734422619368,0.55,3998.9,3997.7,1.1109283]
[1734422619575,0.55,3998.9,3997.8,3.0]
[1734422620054,0.8069,3998.8,3997.7,0.752]
[1734422620765,0.55,3998.7,3997.7,0.752]
[1734422621770,0.55,3998.7,3997.0,0.12774979]
[1734422621771,0.55,3998.7,3997.4,0.752]
[1734422621974,0.55,3998.7,3997.5,3.0]
[1734422622105,0.55,3998.5,3997.4,0.752]
[1734422622561,0.55,3998.7,3997.4,0.752]
[1734422623218,0.8069,3998.6,3997.1,1.1109283]
[1734422623399,0.55,3998.3,3996.7,0.12813131]
[1734422623603,1.58006336,3998.1,3996.2,0.3589283]
[1734422623848,0.55,3997.7,3996.2,0.3589283]
[1734422624062,0.55,3997.5,3996.2,0.3589283]
[1734422625585,0.55,3997.3,3996.2,0.3589283]
[1734422625969,0.55,3997.1,3996.2,0.3589283]
[1734422626728,0.55,3996.9,3995.7,0.7664]
[1734422628265,0.55,3996.9,3995.7,3.7664]
[1734422628764,0.55,3996.9,3995.6,0.3122228]
[1734422628971,2.35972176,3996.5,3994.8,0.7664]
[1734422629116,1.62497218,3996.4,3994.8,0.7664]
[1734422629311,0.55,3996.2,3994.5,0.7664]
[1734422629508,0.55,3996.0,3994.5,0.7664]
[1734422631157,0.55,3996.0,3994.9,3.0]
[1734422631549,0.55,3996.0,3994.5,0.7664]
[1734422631550,0.55,3996.0,3995.0,0.3122228]
[1734422632352,0.55,3996.0,3995.1,0.3589283]
[1734422634058,0.55,3996.0,3995.2,0.36711511]
[1734422634331,0.784,3996.1,3995.3,0.3589283]
[1734422634633,0.784,3996.1,3995.3,1.1253283]
[1734422635657,0.55,3996.4,3995.3,1.14197495]
[1734422635934,0.55,3996.4,3995.3,4.28739473]
[1734422636247,0.55,3996.4,3995.3,1.28739473]
[1734422636606,0.55,3996.4,3995.3,1.27074808]
[1734422637030,0.55,3996.4,3995.3,1.28752383]
[1734422637215,0.55,3996.4,3995.3,4.27074808]
[1734422637418,0.55,3996.4,3995.4,0.44387741]
[1734422637629,0.55,3996.4,3995.5,0.3589283]
[1734422638633,0.784,3996.5,3995.5,0.3589283]
[1734422642066,0.55,3996.4,3995.5,0.3589283]
[1734422642350,0.8159,3996.0,3994.6,0.7648]
[1734422642568,1.55299522,3996.9,3993.8,0.46232885]
[1734422642569,1.3659,3995.7,3993.8,0.46232885]
[1734422642747,0.55,3995.3,3993.8,0.46232885]
[1734422643057,0.55,3995.3,3993.8,0.33591664]
[1734422644777,0.55,3995.1,3993.8,0.33591664]
[1734422645323,0.55,3995.1,3993.9,3.0]
[1734422645578,0.55,3995.1,3994.0,0.7459883]
[1734422645722,0.55,3995.1,3994.0,0.33591664]
[1734422647980,0.8159,3995.2,3994.0,0.33591664]
[1734422648182,4.5473837,3996.7,3994.5,0.7648]
[1734422648183,0.8159,3996.6,3994.5,0.7648]
[1734422648497,1.03158913,3996.9,3994.5,0.7648]
[1734422648498,0.8159,3996.2,3994.5,0.7648]
[1734422648695,2.35972176,3995.9,3994.0,1.10071664]
[1734422648857,0.8159,3995.7,3994.1,3.0]
[1734422649059,0.8159,3995.7,3994.2,0.33591664]
[1734422649603,0.55,3995.6,3994.2,0.33591664]
[1734422651883,0.8159,3995.5,3994.2,0.33591664]
[1734422652112,0.8159,3995.3,3994.0,0.7648]
[1734422652312,0.55,3995.2,3994.0,0.7648]
[1734422652598,0.55,3995.2,3993.9,3.0]
[1734422652599,0.8159,3994.9,3993.9,3.0]
[1734422653147,0.8159,3994.9,3993.7,0.7648]
[1734422653401,0.8159,3994.9,3993.7,1.10071664]
[1734422653601,0.8159,3994.9,3993.9,3.0]
[1734422653807,0.8159,3994.9,3993.8,0.12407921]
[1734422653956,0.8159,3994.9,3993.8,0.59481504]
[1734422654400,0.8159,3994.9,3993.9,3.33591664]
[1734422654954,0.8159,3994.9,3993.9,0.33591664]
[1734422655360,0.8159,3994.9,3993.9,3.33591664]
[1734422655760,0.55,3994.8,3993.9,0.33591664]
[1734422656241,0.55,3994.8,3993.9,3.33591664]
[1734422656419,0.55,3994.8,3993.9,0.33591664]
[1734422656735,0.700249,3994.8,3993.9,0.33591664]
[1734422657114,0.55,3994.6,3993.4,0.8215]
[1734422657450,0.55,3994.4,3993.1,0.94849425]
[1734422657628,0.55,3994.4,3993.4,0.33591664]
[1734422658489,0.55,3994.2,3993.4,0.33591664]
[1734422660759,0.7827,3994.1,3993.4,0.33591664]
[1734422661202,0.7827,3994.1,3992.9,3.0]
[1734422661203,0.55,3994.0,3992.9,3.0]
[1734422661399,0.55,3993.8,3992.7,0.33591664]
[1734422661660,2.49299176,3994.3,3992.6,3.0]
[1734422661661,1.3327,3993.6,3992.6,3.0]
[1734422661802,1.3327,3993.6,3992.2,0.60063478]
[1734422662541,1.3327,3993.6,3992.2,0.30841698]
[1734422662542,0.55,3993.4,3992.2,0.30841698]
[1734422662719,0.55,3993.4,3990.7,0.25]
[1734422662720,0.7827,3993.3,3991.8,0.8215]
[1734422663148,0.7827,3993.3,3991.8,1.12991698]
[1734422663455,0.55,3993.2,3991.9,0.14221348]
[1734422663635,0.55,3993.0,3991.8,1.12991698]
[1734422664504,0.55,3993.0,3991.9,3.0]
[1734422665208,0.55,3992.8,3991.5,0.8215]
[1734422665407,0.55,3992.6,3991.5,0.8215]
[1734422666167,0.7827,3992.7,3991.6,0.30841698]
[1734422666302,0.7827,3992.7,3991.7,0.14221348]
[1734422666508,0.7827,3992.5,3991.6,0.30841698]
[1734422667921,0.7827,3992.5,3991.7,0.8215]
[1734422668128,0.13327,3993.3,3991.7,0.8215]
[1734422668129,0.7827,3993.2,3991.9,3.0]
[1734422668308,0.7827,3993.2,3992.0,0.30841698]
[1734422668507,0.7827,3993.2,3992.0,0.60063478]
[1734422668768,0.7827,3993.2,3992.1,0.36006348]
[1734422668951,0.7827,3993.2,3992.2,0.30841698]
[1734422670645,0.7827,3993.2,3992.4,0.8215]
[1734422670873,0.7827,3993.2,3992.4,1.12991698]
[1734422671015,0.7827,3994.2,3992.5,3.30841698]
[1734422671211,0.32756918,3994.1,3992.6,0.44221348]
[1734422671884,0.7827,3994.0,3992.6,0.44221348]
[1734422672244,0.7827,3994.0,3992.5,3.30841698]
[1734422672442,0.5427,3994.0,3992.5,3.30841698]
[1734422673193,0.5427,3994.0,3992.5,0.30841698]
[1734422673368,0.55,3993.9,3992.5,3.30841698]
[1734422674258,0.5427,3994.0,3992.5,0.30841698]
[1734422674468,0.5427,3994.0,3992.5,0.60063478]
[1734422674640,0.5427,3994.0,3992.6,0.14221348]
[1734422674840,0.5427,3994.0,3992.7,0.30841698]
[1734422675287,0.5427,3994.0,3992.8,3.0]
[1734422675651,0.5427,3994.0,3992.7,0.30841698]
[1734422675886,0.5427,3994.0,3992.8,3.0]
[1734422676099,0.5427,3994.0,3992.7,0.30841698]
[1734422676100,0.5427,3994.0,3992.9,0.34506305]
[1734422676389,0.5427,3994.0,3992.7,0.30841698]
[1734422676688,0.5427,3994.0,3992.8,3.0]
[1734422678192,0.5427,3994.0,3992.7,0.30841698]
[1734422678394,0.5427,3994.0,3992.8,3.0]
[1734422678544,0.5427,3994.0,3992.7,0.30841698]
[1734422678744,0.5427,3994.0,3992.8,3.0]
[1734422679003,0.5427,3994.0,3992.9,0.34506305]
[1734422679845,0.5427,3994.0,3992.7,0.30841698]
[1734422680045,0.5427,3994.0,3992.8,3.0]
[1734422680847,0.5427,3994.0,3992.7,0.30841698]
[1734422681046,0.5427,3994.0,3992.8,0.30841698]
[1734422681306,0.5427,3994.0,3992.8,3.30841698]
[1734422681468,0.5427,3994.0,3992.9,0.34506305]
[1734422682965,0.5427,3994.0,3992.8,0.30841698]
[1734422683159,0.5427,3994.0,3992.8,3.30841698]
[1734422683365,0.5427,3994.0,3992.8,0.30841698]
[1734422683569,0.5427,3994.0,3992.8,3.30841698]
[1734422683747,0.5427,3994.0,3992.8,0.30841698]
[1734422684401,0.5427,3994.0,3992.8,3.30841698]
[1734422684608,0.8045,3994.6,3992.9,0.35781928]
[1734422684749,0.55,3994.3,3992.8,3.30841698]
[1734422684955,0.55,3994.5,3992.8,3.30841698]
[1734422684956,0.55,3994.1,3992.8,3.30841698]
[1734422685313,0.8045,3993.8,3992.8,3.30841698]
[1734422686098,0.8045,3993.8,3992.8,0.30841698]
[1734422686313,0.8045,3993.8,3992.8,3.0]
[1734422686751,0.8045,3993.8,3992.6,0.14221348]
[1734422687151,0.55,3993.5,3992.1,0.41716715]
[1734422687391,0.8045,3993.4,3992.1,0.12494935]
[1734422688251,0.55,3993.3,3991.8,0.60063478]
[1734422688490,0.55,3993.1,3991.8,0.30841698]
[1734422688752,0.55,3992.9,3991.8,0.4369946]
[1734422688955,0.7797,3992.8,3991.8,0.4369946]
[1734422690457,2.06193138,3994.2,3991.9,1.0765178]
[1734422690458,0.7797,3993.2,3991.9,1.0765178]
[1734422690752,0.7797,3993.2,3992.0,0.45976822]
[1734422691055,0.7797,3993.2,3992.1,0.2922178]
[1734422691256,0.7797,3993.2,3992.2,0.30841698]
[1734422691494,0.7797,3993.2,3992.3,0.2922178]
[1734422691701,0.7797,3993.2,3992.4,0.30841698]
[1734422692380,0.7797,3993.2,3992.6,3.0]
[1734422692599,0.7797,3993.2,3992.7,0.3308417]
[1734422692800,1.03096569,3994.6,3992.7,0.3308417]
[1734422693124,0.7797,3994.5,3992.8,0.30841698]
[1734422694469,0.55,3994.4,3992.8,0.30841698]
[1734422694749,3.0,3995.4,3992.8,0.30841698]
[1734422694750,0.55,3994.2,3992.9,3.0]
[1734422694954,0.7797,3994.1,3993.0,0.4092717]
[1734422695157,0.7797,3994.1,3992.9,0.30841698]
[1734422695158,0.7797,3994.1,3992.9,3.30841698]
[1734422696035,0.7797,3994.1,3992.5,0.12424585]
[1734422696216,0.7797,3994.1,3992.3,1.38493478]
[1734422696420,0.7797,3994.1,3992.4,0.30841698]
[1734422696753,0.55,3994.2,3992.4,0.30841698]
[1734422696754,0.7797,3993.7,3992.5,0.15077228]
[1734422696957,0.55,3993.6,3992.5,0.30841698]
[1734422697680,0.7797,3993.7,3992.5,0.30841698]
[1734422698598,0.7797,3993.7,3992.9,3.0]
[1734422698810,0.7797,3993.7,3992.5,0.30841698]
[1734422699899,0.7797,3993.7,3992.9,3.0]
[1734422700102,0.7797,3993.7,3992.9,0.3]
[1734422700392,0.7797,3993.7,3992.5,0.30841698]
[1734422700700,0.7797,3993.7,3992.9,3.0]
[1734422700915,0.7797,3993.7,3992.5,0.30841698]
[1734422701064,0.8143,3993.5,3992.0,1.19755914]
[1734422701251,0.55,3993.2,3991.7,1.0462079]
[1734422701471,0.55,3993.2,3991.5,1.56931185]
[1734422701472,0.8143,3993.1,3991.5,0.12555804]
[1734422701653,0.8143,3993.1,3991.3,1.8668079]
[1734422701895,0.8143,3993.1,3991.7,0.12363258]
[1734422703508,0.85536909,3993.0,3991.7,0.12363258]
[1734422703688,0.8143,3992.9,3991.7,0.46683754]
[1734422704663,0.8143,3992.9,3991.8,0.30841698]
[1734422706493,0.8143,3992.9,3991.8,0.60063478]
[1734422706670,0.8143,3992.9,3992.0,0.8206]
[1734422707013,0.8143,3992.9,3992.1,0.30841698]
[1734422707160,0.8143,3992.9,3992.2,0.54674427]
[1734422707805,0.8143,3992.9,3991.8,4.0462079]
[1734422707970,0.8143,3992.9,3991.8,3.0]
[1734422708377,0.8143,3992.9,3991.7,4.60010546]
[1734422708614,0.8143,3992.9,3991.7,5.64631336]
[1734422709072,0.8143,3992.9,3991.8,0.30841698]
[1734422709273,0.8143,3992.9,3991.9,3.16001055]
[1734422709502,0.8143,3992.9,3992.0,0.30841698]
[1734422711000,0.8143,3992.9,3991.9,0.16001055]
[1734422711328,0.8143,3992.9,3991.9,0.46842753]
[1734422711735,0.8143,3992.9,3992.0,0.30841698]
[1734422712079,0.8143,3992.9,3992.1,0.15153248]
[1734422712396,0.8143,3992.9,3992.0,0.30841698]
[1734422713180,0.8143,3992.9,3991.5,1.04689722]
[1734422713181,0.8143,3992.9,3991.6,0.30841698]
[1734422714308,0.8143,3992.9,3991.6,0.60063478]
[1734422714520,0.8143,3992.9,3991.7,0.2922178]
[1734422714717,0.8143,3992.9,3991.8,1.3553142]
[1734422714924,0.8143,3992.9,3991.9,0.62178778]
[1734422715089,0.8143,3992.9,3992.0,0.30841698]
[1734422716023,0.8143,3992.9,3992.0,1.10211698]
[1734422716347,0.8143,3992.9,3992.0,4.10211698]
[1734422716683,0.7722,3993.5,3992.1,1.04689722]
[1734422716836,0.7722,3993.5,3992.3,1.04689722]
[1734422717030,0.7722,3993.5,3992.5,1.04689722]
[1734422717372,0.7722,3993.5,3992.5,1.3553142]
[1734422717665,0.7722,3993.5,3992.3,1.04689722]
[1734422717974,0.7722,3993.5,3992.4,0.30841698]
[1734422718277,0.7722,3993.5,3992.5,0.51186508]
[1734422718774,0.7722,3993.5,3992.7,0.7937]
[1734422718987,0.7722,3993.5,3992.8,0.30841698]
[1734422724724,0.7722,3993.5,3992.5,0.51186508]
[1734422725853,0.7722,3993.5,3992.5,0.82028206]
[1734422726017,0.7722,3993.5,3992.6,0.56608793]
[1734422726532,0.7722,3993.5,3992.6,0.87450491]
[1734422727969,0.7722,3993.5,3992.6,0.9993824]
[1734422728177,0.7722,3993.5,3992.6,0.87450491]
[1734422728360,0.7722,3993.5,3991.9,1.04689722]
[1734422728677,0.55,3993.2,3991.7,1.04689722]
[1734422728844,0.7722,3993.2,3991.5,1.04689722]
[1734422729201,0.23566514,3993.1,3991.6,0.69287813]
[1734422729360,0.7722,3993.0,3991.6,0.69287813]
[1734422731735,0.7722,3993.0,3991.6,0.38446115]
[1734422732028,0.7722,3993.0,3991.6,1.43135837]
[1734422732365,0.7722,3993.0,3991.7,0.1227977]
[1734422732568,0.7722,3993.0,3992.0,3.0]
[1734422733680,0.7722,3993.0,3992.0,0.30841698]
[1734422733822,0.7722,3993.0,3992.0,3.30841698]
[1734422734341,0.7722,3993.0,3992.0,0.30841698]
[1734422734761,0.7722,3993.0,3992.0,3.30841698]
[1734422735231,0.7842,3992.9,3991.8,0.15541561]
[1734422735432,0.7842,3992.9,3992.0,3.0]
[1734422735658,0.7842,3992.9,3991.8,0.15541561]
[1734422735882,0.7842,3992.9,3991.6,0.38446115]
[1734422736080,0.55,3992.8,3991.9,3.0]
[1734422736291,0.7842,3992.7,3991.6,0.30841698]
[1734422741125,0.7842,3992.7,3991.9,3.0]
[1734422741327,0.7842,3992.7,3991.6,0.30841698]
[1734422741992,0.7842,3992.7,3991.9,3.0]
[1734422742191,0.7842,3992.7,3991.6,0.30841698]
[1734422742616,0.7842,3992.7,3991.9,3.0]
[1734422742924,0.7842,3992.7,3991.6,0.30841698]
[1734422743174,0.7842,3992.7,3991.3,0.12277256]
[1734422743366,0.7842,3992.7,3991.3,0.46379312]
[1734422743499,0.85562147,3992.6,3991.3,0.46379312]
[1734422743698,0.7842,3992.5,3991.1,0.41754164]
[1734422743939,0.7842,3992.5,3991.1,0.72595862]
[1734422744093,0.7842,3992.5,3991.2,0.30841698]
[1734422744668,0.7842,3992.3,3990.8,0.12730633]
[1734422744950,0.55,3992.0,3990.8,0.30841698]
[1734422745250,0.55,3992.1,3990.8,0.30841698]
[1734422745403,3.72244075,3992.1,3990.8,0.30841698]
[1734422745605,0.85511758,3992.0,3990.8,0.30841698]
[1734422745833,0.55,3991.9,3990.8,0.30841698]
[1734422746171,0.55,3991.7,3990.2,0.30841698]
[1734422746803,0.85469836,3991.6,3990.2,0.30841698]
[1734422747130,0.55,3991.7,3990.2,0.30841698]
[1734422747965,0.7943,3991.6,3990.2,0.30841698]
[1734422748122,0.7943,3991.4,3990.2,0.30841698]
[1734422748318,1.33362157,3991.8,3990.2,0.30841698]
[1734422748319,0.7943,3991.2,3990.2,0.30841698]
[1734422748840,0.7943,3991.2,3990.2,0.60061085]
[1734422749370,0.7943,3991.2,3990.2,0.30841698]
[1734422750019,0.7943,3991.2,3990.3,0.29219387]
[1734422750203,0.7943,3991.2,3990.4,0.30841698]
[1734422750406,0.7943,3991.2,3990.6,3.0]
[1734422750734,0.7943,3991.2,3990.7,0.30841698]
[1734422755691,0.7943,3991.2,3990.6,3.0]
[1734422756343,0.7943,3991.2,3990.5,0.13920109]
[1734422757179,0.7943,3991.2,3990.4,0.29219387]
[1734422757735,0.7943,3991.2,3990.2,3.0]
[1734422757930,0.7943,3991.2,3989.8,0.12488896]
[1734422757931,0.7943,3991.2,3990.0,0.30841698]
[1734422759282,0.7943,3991.2,3990.0,0.60061085]
[1734422760903,0.7943,3991.2,3990.0,0.30841698]
[1734422762077,0.7943,3991.2,3990.0,0.43591944]
[1734422762391,0.55,3991.1,3990.0,0.43591944]
[1734422762550,0.774,3991.0,3990.0,0.43591944]
[1734422763218,0.774,3991.0,3990.2,3.0]
[1734422763497,0.774,3991.0,3990.3,0.30841698]
[1734422765200,0.774,3991.0,3990.5,3.0]
[1734422765382,0.774,3991.0,3990.5,0.30841698]
[1734422765585,0.774,3991.0,3990.6,0.14156109]
[1734422765900,0.774,3992.3,3990.6,0.14156109]
[1734422766197,0.774,3992.3,3990.7,0.30841698]
[1734422766753,0.774,3992.1,3990.8,3.0]
[1734422767082,0.774,3991.9,3990.7,0.30841698]
[1734422767287,0.774,3991.7,3990.7,0.30841698]
[1734422767580,0.774,3991.7,3990.7,3.30841698]
[1734422768102,0.774,3991.7,3990.6,0.14156109]
[1734422768253,0.774,3991.7,3990.2,0.30841698]
[1734422768453,0.774,3991.5,3990.2,0.30841698]
[1734422769306,0.774,3991.5,3990.2,0.60061085]
[1734422769541,0.774,3991.5,3990.3,0.29219387]
[1734422769856,0.774,3991.5,3990.4,0.30841698]
[1734422770778,0.774,3991.5,3990.5,0.29219387]
[1734422770980,0.774,3991.5,3990.6,0.30841698]
[1734422771663,0.774,3991.5,3990.5,0.29219387]
[1734422771863,0.774,3991.5,3990.5,0.60061085]
[1734422773078,0.774,3991.5,3990.6,0.30841698]
[1734422773466,0.774,3991.5,3990.7,0.14156109]
[1734422774589,0.774,3991.5,3990.8,3.0]
[1734422774789,0.774,3991.5,3990.7,0.14156109]
[1734422775506,0.7914,3992.4,3991.0,3.0]
[1734422775673,0.774,3992.3,3991.1,0.30841698]
[1734422775856,0.774,3992.3,3991.2,0.3308417]
[1734422776059,0.774,3992.3,3991.1,0.60061085]
[1734422776505,0.774,3992.3,3991.4,3.0]
[1734422776804,0.774,3992.3,3991.1,0.60061085]
[1734422777112,0.774,3992.3,3991.1,0.30841698]
[1734422777318,0.774,3992.3,3991.4,3.0]
[1734422777611,0.774,3992.3,3991.1,0.30841698]
[1734422778413,0.774,3992.3,3991.1,0.60061085]
[1734422778616,0.774,3992.3,3991.2,0.29219387]
[1734422778910,0.774,3992.3,3991.3,0.30841698]
[1734422779411,0.774,3992.3,3991.3,0.60061085]
[1734422779620,0.774,3992.3,3991.4,1.10359387]
[1734422779921,0.774,3992.3,3991.5,0.14120109]
[1734422780597,0.774,3992.3,3991.5,0.44961807]
[1734422781398,0.774,3992.3,3991.5,0.30841698]
[1734422784272,0.74885571,3992.3,3991.5,0.30841698]
[1734422787555,1.03464528,3993.0,3991.5,0.30841698]
[1734422787705,0.7649,3992.5,3991.6,0.8114]
[1734422788343,0.7649,3992.5,3991.8,3.0]
[1734422788524,0.7649,3992.5,3991.9,0.3]
[1734422788727,0.7649,3992.5,3991.5,0.30841698]
[1734422790657,0.7649,3992.5,3991.8,3.0]
[1734422791030,0.7649,3992.5,3991.5,0.30841698]
[1734422791227,0.7649,3992.5,3991.8,3.0]
[1734422791813,0.7649,3992.5,3991.5,0.30841698]
[1734422792215,0.7649,3992.5,3991.8,3.0]
[1734422792460,0.7649,3992.5,3991.5,0.30841698]
[1734422793238,0.7649,3992.5,3991.8,3.0]
[1734422793966,0.7649,3992.5,3990.8,3.0]
[1734422794171,0.7649,3992.5,3990.7,0.95296109]
[1734422794172,0.7649,3992.3,3991.0,0.30841698]
[1734422794526,0.7649,3992.3,3991.2,0.12603391]
[1734422794762,0.7649,3992.3,3991.3,0.60061085]
[1734422798451,0.7649,3992.3,3991.9,3.0]
[1734422798826,0.7649,3992.3,3991.4,0.8114]
[1734422799023,0.7649,3992.3,3991.5,0.75441533]
[1734422799585,0.7649,3992.3,3991.9,3.0]
[1734422799811,0.7649,3992.3,3991.5,0.75441533]
[1734422801810,0.7649,3992.3,3991.9,3.0]
[1734422802415,0.7649,3992.3,3991.8,0.12555869]
[1734422802986,0.7649,3992.3,3991.9,3.0]
[1734422803507,0.7649,3992.3,3991.7,3.0]
[1734422803674,0.7649,3992.3,3991.7,3.34622215]
[1734422803871,0.7649,3992.3,3991.7,0.34622215]
[1734422804085,0.7649,3992.3,3991.7,3.0]
[1734422804891,0.7649,3992.3,3991.5,0.46222146]
[1734422805064,0.7649,3992.3,3991.7,3.0]
[1734422805806,0.7649,3992.3,3991.5,0.30841698]
[1734422806102,0.7649,3992.3,3991.7,3.0]
[1734422806302,0.7649,3992.3,3991.5,0.30841698]
[1734422806974,0.7649,3992.3,3991.2,0.12603391]
[1734422807310,0.7649,3992.3,3991.2,0.30841698]
[1734422807612,0.7649,3992.3,3991.5,3.0]
[1734422807912,0.7649,3992.3,3991.2,0.30841698]
[1734422808217,1.97949981,3992.3,3991.2,0.30841698]
[1734422808394,0.7828,3992.1,3991.2,0.30841698]
[1734422809185,0.7828,3991.9,3991.2,0.30841698]
[1734422812240,0.7828,3991.9,3991.3,0.29219387]
[1734422812372,0.7828,3992.3,3991.7,3.0]
[1734422812574,0.7828,3992.3,3991.7,0.30841698]
[1734422814502,0.7828,3992.3,3991.7,3.30841698]
[1734422814716,0.7828,3992.3,3991.7,0.30841698]
[1734422818331,0.7828,3992.9,3991.8,0.7548]
[1734422818525,0.7828,3992.9,3992.0,4.04727121]
[1734422818740,0.7828,3992.9,3992.2,1.04727121]
[1734422818891,0.7828,3992.9,3992.3,0.62486207]
[1734422822335,0.7828,3992.9,3992.3,0.75318666]
[1734422823505,0.7532,3993.6,3992.4,0.8037]
[1734422823705,0.7532,3993.6,3992.5,4.34231901]
[1734422823907,0.7532,3993.6,3992.5,1.34231901]
[1734422824993,0.7532,3993.6,3993.0,3.0]
[1734422825224,0.7532,3993.6,3992.5,0.62486207]
[1734422829248,0.7532,3993.6,3992.3,0.12832459]
[1734422829426,0.7532,3993.6,3992.3,0.44476968]
[1734422829768,0.7532,3993.6,3992.4,0.62486207]
[1734422833182,0.791,3994.2,3992.9,0.12208263]
[1734422833377,0.791,3994.2,3993.0,1.40079212]
[1734422833893,0.791,3994.2,3993.0,4.40079212]
[1734422834195,0.791,3994.2,3993.0,5.44764443]
[1734422835365,0.791,3994.2,3993.0,4.40079212]
[1734422835585,0.791,3994.2,3993.1,0.55697271]
[1734422835785,0.791,3994.2,3993.2,0.64779212]
[1734422836783,3.58567038,3996.3,3993.2,0.64779212]
[1734422836784,0.7882,3995.3,3993.3,0.7959]
[1734422836968,0.7882,3995.3,3993.4,0.64779212]
[1734422840124,0.7882,3995.3,3994.0,0.12473941]
[1734422840827,0.55,3995.0,3992.7,0.7959]
[1734422841000,0.55,3994.6,3992.8,0.33134703]
[1734422841174,0.55,3994.4,3993.0,0.12411452]
[1734422841416,0.55,3994.2,3992.8,0.33134703]
[1734422841731,0.92202,3994.1,3992.8,0.33134703]
[1734422841932,0.7882,3994.1,3992.8,0.33134703]
[1734422842630,0.55,3994.0,3992.8,0.33134703]
[1734422842769,0.7882,3993.9,3992.8,0.33134703]
[1734422842970,0.55,3993.6,3992.0,0.45920786]
[1734422843217,0.7882,3993.3,3991.4,0.47956067]
[1734422843553,0.55,3993.4,3991.5,0.12754607]
[1734422843554,0.7882,3992.9,3991.5,0.12754607]
[1734422843704,0.7882,3992.9,3991.5,0.33134703]
[1734422844484,0.55,3992.8,3991.5,0.33134703]
[1734422844987,0.7882,3993.1,3991.5,0.33134703]
[1734422845284,0.7882,3992.8,3991.5,0.33134703]
[1734422845796,0.7882,3992.8,3991.5,0.77587443]
[1734422846572,0.7882,3992.8,3991.6,0.31644509]
[1734422846815,0.7882,3992.8,3991.7,0.33134703]
[1734422846987,0.7882,3992.8,3991.7,0.64779212]
[1734422847572,0.7882,3992.8,3992.1,3.0]
[1734422847920,0.7882,3992.8,3992.2,0.33134703]
[1734422849319,0.7882,3992.8,3992.2,0.98092682]
[1734422849526,0.7882,3992.8,3992.2,0.64779212]
[1734422849930,0.7882,3992.8,3992.3,0.31644509]